bitfinex/quotes_ETHUSD_20250115
["timestamp","ask_amount","ask_price","bid_price","bid_amount"]
[1736903608459,0.0309401,3229.6,3228.6,4.54424639]
[1736903609001,0.809,3229.7,3228.7,3.09716]
[1736903609296,0.809,3229.7,3228.8,3.03096734]
[1736903609490,0.809,3229.7,3228.8,3.79510797]
[1736903610172,0.999,3229.7,3228.8,3.79510797]
[1736903610377,0.0309401,3229.6,3228.8,3.76414063]
[1736903610561,3.09646,3229.5,3228.6,3.8214]
[1736903610766,0.0309401,3229.4,3228.6,3.8214]
[1736903611099,4.09529,3229.7,3228.6,0.85236756]
[1736903611320,0.0309401,3229.6,3228.8,3.0]
[1736903612301,0.999,3229.7,3228.9,0.03096703]
[1736903612478,0.0309401,3229.6,3228.8,3.09712]
[1736903616805,0.809,3229.5,3228.8,3.09712]
[1736903616970,0.0309401,3229.4,3228.8,3.09712]
[1736903617805,0.809,3229.5,3228.8,3.09712]
[1736903619408,0.809,3229.5,3229.1,3.09682]
[1736903619579,0.809,3229.5,3229.2,0.0309641]
[1736903619920,0.809,3229.5,3229.1,3.52270283]
[1736903620087,0.809,3229.8,3229.1,3.49173871]
[1736903620274,0.809,3229.8,3229.1,3.09682]
[1736903621677,0.809,3229.8,3229.3,3.09658]
[1736903622099,0.809,3229.8,3229.1,3.71593646]
[1736903622500,0.809,3229.8,3228.8,3.0]
[1736903622811,0.0309401,3229.7,3228.8,3.0971]
[1736903623018,0.0309401,3229.7,3228.8,3.48895]
[1736903624211,3.90525,3229.8,3228.8,0.39185]
[1736903624379,0.809,3229.8,3228.9,0.03096658]
[1736903624579,0.809,3229.8,3229.0,3.09693]
[1736903625524,0.809,3229.8,3228.9,0.65343398]
[1736903625687,0.0309401,3229.7,3228.9,0.6224674]
[1736903625891,0.809,3229.6,3228.9,0.6224674]
[1736903626103,0.0309401,3229.5,3228.9,0.6224674]
[1736903626824,0.0309401,3229.5,3228.8,3.0]
[1736903627127,0.42456811,3229.5,3228.1,3.09779]
[1736903627331,3.90544,3229.6,3228.6,3.09727]
[1736903627493,0.0309401,3229.5,3228.6,3.09727]
[1736903627693,0.0309401,3229.5,3228.6,0.63113542]
[1736903627929,0.809,3229.6,3228.7,3.12815897]
[1736903628428,3.1274101,3229.5,3228.6,0.63113542]
[1736903628727,3.52105111,3229.5,3228.6,0.63113542]
[1736903629128,0.8081,3229.4,3228.6,0.63113542]
[1736903629428,0.0309401,3229.3,3228.6,0.63113542]
[1736903631430,0.8081,3229.2,3228.4,3.0]
[1736903631728,0.8081,3229.2,3228.4,3.09749]
[1736903631729,0.0309401,3229.1,3228.4,3.09749]
[1736903631930,0.8081,3229.2,3228.5,3.72158555]
[1736903632933,0.8081,3229.2,3228.5,1.44388555]
[1736903633231,0.8081,3229.5,3229.1,3.09682]
[1736903633645,0.8081,3229.5,3228.8,0.0309645]
[1736903633799,0.8081,3229.5,3228.9,3.09698]
[1736903634213,0.8081,3229.5,3228.8,3.09709]
[1736903634214,1.42400401,3229.5,3228.8,3.09709]
[1736903635235,0.8081,3229.5,3228.8,3.09709]
[1736903635934,0.8081,3229.5,3228.9,3.1279875]
[1736903636135,0.0309401,3229.4,3228.5,4.44388555]
[1736903636432,0.8081,3229.5,3228.9,3.09694]
[1736903637299,0.8081,3229.5,3228.7,3.09714]
[1736903637501,0.0309401,3229.4,3228.5,3.72151555]
[1736903637930,0.0309401,3229.4,3228.5,4.07037252]
[1736903638227,0.0309401,3229.4,3228.6,3.09727]
[1736903639138,0.0309401,3229.4,3228.7,3.09719]
[1736903641032,0.8081,3229.5,3228.7,3.09719]
[1736903641240,0.8081,3229.5,3228.8,0.03096785]
[1736903641454,0.8081,3230.2,3228.9,0.8197]
[1736903641727,0.2199401,3230.1,3229.2,3.09671]
[1736903642139,0.8081,3230.2,3229.3,0.030962]
[1736903642429,0.8081,3230.2,3229.6,3.09635]
[1736903642632,0.8390401,3230.2,3229.3,3.22251954]
[1736903642931,3.90121,3230.0,3229.3,3.22251954]
[1736903643231,0.189,3230.1,3229.2,3.22251954]
[1736903643232,3.90136,3229.8,3229.2,3.22251954]
[1736903643530,0.8052,3229.6,3229.2,3.22251954]
[1736903643739,0.0309401,3229.5,3228.8,6.31960954]
[1736903643904,0.0309401,3229.5,3228.8,3.22251954]
[1736903644104,0.0309401,3229.5,3228.6,0.7772]
[1736903644105,0.0309401,3229.5,3228.7,6.31971954]
[1736903644409,0.0309401,3229.5,3228.9,0.61493493]
[1736903644624,0.42419411,3229.5,3228.7,3.0972]
[1736903645337,0.8052,3229.6,3228.8,3.72867653]
[1736903647623,0.0309401,3229.5,3228.8,3.72867653]
[1736903648335,0.0309401,3229.5,3228.8,0.63156653]
[1736903648631,0.8228,3229.4,3228.8,0.63156653]
[1736903649027,3.09644,3229.6,3228.5,6.57137651]
[1736903649028,0.8228,3229.2,3228.5,3.22251954]
[1736903649203,0.8228,3229.2,3228.4,3.22251954]
[1736903649398,0.8228,3229.2,3228.8,3.09711]
[1736903649603,0.8228,3229.8,3228.9,0.03096798]
[1736903649897,0.8228,3229.8,3229.0,3.75419824]
[1736903650102,1.0118,3230.1,3229.5,3.09644]
[1736903650299,0.8228,3230.1,3229.3,3.09662]
[1736903650536,0.8228,3230.1,3229.3,3.12758162]
[1736903650832,0.8228,3230.1,3229.4,3.09646]
[1736903651799,0.8228,3230.1,3229.6,3.09635]
[1736903652039,0.8228,3230.1,3229.5,3.12740047]
[1736903653041,0.8228,3230.1,3229.5,3.44014052]
[1736903653337,0.8228,3230.1,3229.6,3.09632]
[1736903654340,0.8228,3230.1,3229.5,0.31274005]
[1736903654543,0.8228,3230.1,3229.4,3.0]
[1736903654840,0.8228,3230.1,3229.3,0.63186181]
[1736903655042,0.8228,3229.8,3229.2,3.22251954]
[1736903655343,1.21778201,3229.8,3229.2,3.22251954]
[1736903655518,0.0309401,3229.7,3228.8,3.22251954]
[1736903655721,0.0309401,3229.7,3228.9,0.03096491]
[1736903656358,0.8228,3229.8,3228.9,0.03096491]
[1736903656505,0.8228,3229.8,3229.3,3.09657]
[1736903657938,0.8228,3229.8,3229.4,3.12749175]
[1736903658244,0.759,3230.1,3229.5,3.09645]
[1736903658561,0.759,3230.1,3229.6,3.12723878]
[1736903659847,0.759,3230.1,3229.7,3.09626]
[1736903660165,0.759,3230.1,3229.4,0.03095878]
[1736903660372,0.759,3230.1,3229.7,0.60739196]
[1736903660810,0.759,3230.1,3229.7,0.63835075]
[1736903661933,0.759,3230.1,3229.7,3.73457075]
[1736903662107,0.759,3230.1,3229.8,3.09616]
[1736903662315,0.759,3230.4,3229.8,3.09616]
[1736903662513,0.759,3230.4,3229.9,0.03095686]
[1736903664074,0.759,3230.4,3229.9,3.12697686]
[1736903664271,0.759,3230.4,3229.9,3.09602]
[1736903664466,0.759,3230.4,3229.8,1.17645107]
[1736903664768,0.759,3230.4,3229.8,3.09609]
[1736903665167,0.759,3230.4,3229.8,3.12704582]
[1736903665346,0.759,3230.4,3229.8,3.09609]
[1736903665546,0.759,3230.4,3229.7,0.60739196]
[1736903665743,0.8062401,3230.3,3229.2,3.22251954]
[1736903666058,0.7753,3230.1,3229.2,6.31923954]
[1736903666265,0.0309401,3230.0,3229.2,3.09672]
[1736903666434,0.0309401,3230.0,3229.4,0.61921097]
[1736903666631,0.7753,3229.9,3229.0,3.09689]
[1736903666876,0.7753,3229.6,3228.9,0.61883874]
[1736903667042,0.0309401,3229.5,3228.8,3.22251954]
[1736903667248,0.7753,3229.4,3228.8,3.22251954]
[1736903667445,0.7753,3229.2,3228.4,3.22251954]
[1736903667648,0.0309401,3229.1,3228.4,3.22251954]
[1736903667973,0.0309401,3229.1,3228.6,0.61244873]
[1736903668375,0.0309401,3229.1,3228.3,3.09758]
[1736903668575,0.0309401,3229.1,3228.1,3.22251954]
[1736903668576,0.7753,3229.0,3228.1,3.22251954]
[1736903668876,3.8725,3228.8,3228.1,3.22251954]
[1736903669171,0.0309401,3228.7,3227.8,6.32051954]
[1736903669741,0.0309401,3228.7,3227.8,3.098]
[1736903670483,0.0309401,3228.7,3227.9,3.72667294]
[1736903670779,0.7753,3228.8,3228.0,0.03097486]
[1736903670975,0.7753,3228.8,3228.1,3.09778]
[1736903671340,0.7753,3228.8,3228.2,0.03097484]
[1736903671573,0.7753,3228.8,3228.3,3.09759]
[1736903671778,0.7753,3228.8,3228.2,0.03097484]
[1736903672377,0.7753,3228.8,3228.0,0.7997]
[1736903672678,0.7753,3228.8,3228.1,0.43513012]
[1736903673680,0.7753,3228.8,3228.1,0.46610182]
[1736903674179,0.7753,3228.8,3228.1,0.43513012]
[1736903674972,0.7753,3228.8,3228.1,0.46610183]
[1736903675878,0.7753,3228.8,3227.9,0.62870294]
[1736903676066,0.7753,3228.6,3227.9,0.62870294]
[1736903676248,0.7753,3228.6,3228.0,0.03097483]
[1736903676445,0.7753,3228.6,3227.9,0.62870294]
[1736903677746,0.7753,3228.6,3228.0,0.03097489]
[1736903678849,0.7753,3228.6,3228.1,0.35825761]
[1736903684486,0.7753,3228.6,3227.9,0.62870294]
[1736903685649,0.0309401,3228.5,3227.4,3.9692669]
[1736903685864,0.7753,3228.4,3227.4,3.9692669]
[1736903686089,0.0309401,3228.3,3227.5,0.03097899]
[1736903686293,0.7753,3228.4,3227.6,0.40002459]
[1736903686897,0.7753,3228.4,3227.6,3.32292283]
[1736903687063,0.7753,3228.4,3227.7,3.03097899]
[1736903687268,0.7753,3228.4,3227.7,3.0]
[1736903687687,0.7753,3228.4,3227.9,0.60537412]
[1736903687877,0.8062401,3228.4,3227.9,0.60537412]
[1736903688383,0.7753,3228.4,3227.9,0.60537412]
[1736903691484,0.7753,3228.4,3227.9,0.96900922]
[1736903691992,0.7753,3228.4,3227.9,4.06698922]
[1736903692510,0.7753,3228.4,3227.9,0.60537412]
[1736903695064,0.7753,3228.4,3227.6,3.09824]
[1736903695377,0.817,3228.1,3227.4,0.1695669]
[1736903695598,0.817,3227.9,3227.4,0.1695669]
[1736903695970,0.8479401,3227.8,3227.4,0.1695669]
[1736903696393,0.817,3227.6,3227.4,0.1695669]
[1736903696631,0.8479401,3227.6,3227.4,0.1695669]
[1736903696913,1.74357593,3230.5,3227.4,0.1695669]
[1736903696914,0.817,3228.5,3227.4,0.1695669]
[1736903697120,0.817,3228.3,3227.6,3.09827]
[1736903697606,0.0309401,3228.2,3227.6,3.09827]
[1736903698165,0.0309401,3228.2,3227.4,3.2680069]
[1736903698564,0.0309401,3228.2,3227.5,3.09833]
[1736903698810,0.817,3228.3,3227.5,0.35776899]
[1736903698994,0.817,3228.3,3227.7,3.09818]
[1736903700539,0.817,3228.3,3227.5,3.09834]
[1736903700745,0.8479401,3228.2,3227.4,0.1695669]
[1736903700895,0.817,3227.9,3227.4,0.1695669]
[1736903701095,0.817,3227.7,3227.4,0.1695669]
[1736903701333,0.81327461,3227.5,3227.4,0.1695669]
[1736903707653,0.8125,3227.8,3227.4,3.2680269]
[1736903707867,0.8125,3227.8,3227.4,0.1695669]
[1736903708250,0.0309401,3227.7,3227.4,0.1695669]
[1736903708860,0.8125,3227.6,3227.4,0.1695669]
[1736903709038,6.11189824,3228.2,3227.4,0.1695669]
[1736903709039,3.9418101,3227.5,3227.4,0.1695669]
[1736903709679,12.8118101,3227.5,3227.4,0.1695669]
[1736903709844,12.78087,3227.5,3227.4,0.1695669]
[1736903711850,13.73402226,3227.5,3227.4,0.1695669]
[1736903712063,15.39971431,3227.5,3227.4,0.1695669]
[1736903712259,3.09931,3226.6,3225.5,0.7737]
[1736903712458,3.55,3227.4,3225.5,0.7737]
[1736903712459,1.0324401,3226.5,3225.5,0.7737]
[1736903712785,1.0324401,3226.5,3225.2,0.7737]
[1736903712982,1.0324401,3226.5,3225.8,3.09998]
[1736903712983,1.0015,3226.5,3225.8,3.09998]
[1736903713184,0.0309401,3226.4,3225.9,3.09988]
[1736903713367,0.0309401,3226.4,3225.6,0.6543687]
[1736903713368,0.0309401,3226.4,3225.7,3.10009]
[1736903713575,0.0309401,3226.4,3225.6,0.62337162]
[1736903713870,1.0015,3226.5,3225.6,0.62337162]
[1736903714070,1.0015,3226.5,3225.8,3.09999]
[1736903715664,1.0015,3226.5,3225.9,0.03099873]
[1736903715665,0.8125,3226.5,3225.9,0.03099873]
[1736903715867,0.0309401,3226.4,3225.7,3.10008]
[1736903716187,0.8125,3226.5,3225.8,3.09998]
[1736903716781,0.0309401,3226.4,3225.8,3.09998]
[1736903717085,0.0309401,3226.4,3225.6,3.72353162]
[1736903717801,0.0309401,3226.4,3225.3,3.1004]
[1736903717802,3.87084,3226.3,3225.3,3.1004]
[1736903717957,0.7713,3226.0,3224.9,0.7597]
[1736903718142,0.7713,3225.7,3225.0,0.61461448]
[1736903718342,0.0309401,3225.6,3224.7,3.10098]
[1736903718592,3.1311501,3225.6,3224.6,0.7597]
[1736903718891,3.10097,3224.8,3224.3,3.22251954]
[1736903719046,0.7713,3224.6,3224.3,3.22251954]
[1736903719262,0.0309401,3224.5,3223.6,3.10209]
[1736903719458,0.0309401,3224.5,3223.7,3.102]
[1736903719659,0.7713,3224.6,3223.9,3.10179]
[1736903719906,0.7713,3224.6,3224.0,3.10172]
[1736903720976,0.0309401,3224.5,3224.0,3.10172]
[1736903721178,0.0309401,3224.5,3223.7,3.10197]
[1736903721378,0.0309401,3224.5,3223.6,0.03101548]
[1736903721714,0.7713,3224.6,3223.8,3.10191]
[1736903721879,0.7713,3224.6,3223.8,3.13292548]
[1736903722079,0.7713,3224.6,3223.8,3.10191]
[1736903722318,0.7713,3224.6,3223.8,0.03101548]
[1736903722611,3.10136,3224.4,3223.3,3.10237]
[1736903722796,3.10136,3224.4,3223.4,3.86199]
[1736903722797,0.31323001,3224.3,3223.4,3.86199]
[1736903723312,3.87255,3224.6,3223.4,3.86199]
[1736903723474,0.0309401,3224.5,3223.4,3.86199]
[1736903723677,3.1322101,3224.5,3223.4,3.86199]
[1736903723897,0.0309401,3224.5,3223.4,0.7597]
[1736903724424,7.8410571,3224.2,3224.1,0.1695669]
[1736903724713,7.810117,3224.2,3224.1,0.1695669]
[1736903725006,0.9603,3224.2,3224.1,0.1695669]
[1736903725380,0.7713,3224.2,3224.1,0.1695669]
[1736903725589,0.9603,3224.2,3224.1,0.1695669]
[1736903725996,0.7713,3224.2,3224.1,0.1695669]
[1736903726161,0.7713,3224.5,3224.1,0.1695669]
[1736903726358,0.0309401,3224.4,3224.1,0.1695669]
[1736903726829,0.9603,3224.5,3224.1,0.1695669]
[1736903727326,0.0309401,3224.4,3224.1,0.1695669]
[1736903727633,3.0,3224.2,3224.1,0.1695669]
[1736903727787,3.38022401,3224.2,3224.1,0.1695669]
[1736903728895,0.56922401,3224.2,3224.1,0.1695669]
[1736903729082,0.189,3224.2,3224.1,0.1695669]
[1736903729984,0.7713,3224.3,3224.1,0.1695669]
[1736903730229,0.9603,3224.3,3224.1,0.1695669]
[1736903730410,0.7713,3224.3,3224.1,0.1695669]
[1736903730630,0.9603,3224.3,3224.1,0.1695669]
[1736903730847,0.0309401,3224.2,3224.1,0.1695669]
[1736903731858,0.189,3224.2,3224.1,0.1695669]
[1736903732845,0.2199401,3224.2,3224.1,0.1695669]
[1736903733023,4.6427801,3224.2,3224.1,0.1695669]
[1736903733224,8.69934793,3224.2,3224.1,0.1695669]
[1736903733506,8.66840783,3224.2,3224.1,0.1695669]
[1736903736002,3.87231,3224.8,3224.1,0.1695669]
[1736903736356,0.0309401,3224.7,3224.1,0.1695669]
[1736903736519,3.1320001,3224.7,3224.1,0.1695669]
[1736903736719,3.5809401,3224.7,3224.1,0.1695669]
[1736903736924,3.87284,3224.2,3224.1,0.1695669]
[1736903737117,7.260124,3224.2,3224.1,0.1695669]
[1736903737855,4.158584,3224.2,3224.1,0.1695669]
[1736903738068,0.7713,3224.2,3224.1,0.1695669]
[1736903738268,0.9603,3224.2,3224.1,0.1695669]
[1736903738631,0.8022401,3224.5,3224.1,0.1695669]
[1736903738834,0.0309401,3224.4,3224.1,0.1695669]
[1736903739869,3.1323201,3224.4,3224.1,0.1695669]
[1736903740073,0.40926201,3224.3,3224.1,0.1695669]
[1736903740219,0.0309401,3224.2,3224.1,0.1695669]
[1736903740876,0.2199401,3224.2,3224.1,0.1695669]
[1736903741536,3.3214801,3224.2,3224.1,0.1695669]
[1736903742268,0.189,3224.2,3224.1,0.1695669]
[1736903742575,0.5899053,3224.2,3224.1,0.1695669]
[1736903742944,0.5589652,3224.2,3224.1,0.1695669]
[1736903743743,0.2199401,3224.2,3224.1,0.1695669]
[1736903744164,0.189,3224.2,3224.1,0.1695669]
[1736903744966,0.189,3224.3,3224.1,0.1695669]
[1736903745267,0.0309401,3224.2,3224.1,0.1695669]
[1736903746738,0.189,3224.3,3224.1,0.1695669]
[1736903747367,0.7812,3224.7,3224.1,0.1695669]
[1736903747565,0.577218,3224.6,3224.1,0.1695669]
[1736903747767,0.2199401,3224.5,3224.1,0.1695669]
[1736903748261,0.189,3224.5,3224.1,0.1695669]
[1736903749569,0.189,3224.6,3224.1,0.1695669]
[1736903750252,0.0309401,3224.5,3224.1,0.1695669]
[1736903752086,0.189,3224.6,3224.1,0.1695669]
[1736903753536,0.0309401,3224.5,3224.1,0.1695669]
[1736903753736,0.189,3224.6,3224.1,0.1695669]
[1736903756130,3.10087,3224.9,3224.1,0.1695669]
[1736903756335,0.189,3224.8,3224.1,0.1695669]
[1736903756535,3.8922,3225.3,3224.4,0.8141]
[1736903756826,0.7917,3225.3,3224.4,0.8141]
[1736903757038,0.189,3225.2,3224.5,3.10124]
[1736903757888,0.189,3225.2,3224.5,3.78506382]
[1736903758259,0.0309401,3225.1,3224.4,0.8141]
[1736903759485,0.2199401,3225.2,3224.4,3.91544]
[1736903761398,0.189,3225.2,3224.4,3.91544]
[1736903761836,0.0309401,3225.1,3224.4,3.91544]
[1736903762292,0.189,3225.2,3224.5,3.10121]
[1736903762438,0.8226401,3225.6,3224.6,6.02403824]
[1736903762767,0.78306892,3226.5,3224.7,0.7724]
[1736903762768,0.0309401,3225.5,3224.7,0.7724]
[1736903762941,0.8313,3225.3,3224.7,0.7724]
[1736903763141,0.0309401,3225.2,3224.7,0.7724]
[1736903764194,0.0309401,3225.5,3224.7,0.7724]
[1736903764343,0.189,3225.3,3224.3,3.70859824]
[1736903764545,0.0309401,3225.2,3224.3,3.70859824]
[1736903764739,3.1315301,3225.2,3224.3,6.80995824]
[1736903765247,0.0309401,3225.2,3224.3,0.7857]
[1736903765461,3.10103,3224.8,3224.3,0.7857]
[1736903765692,0.3410431,3224.7,3224.3,0.7857]
[1736903765843,0.0309401,3224.6,3224.1,0.1695669]
[1736903768091,3.10108,3224.7,3224.1,0.1695669]
[1736903768894,0.2199401,3224.6,3224.1,0.1695669]
[1736903769547,0.189,3224.6,3224.1,0.1695669]
[1736903770051,0.0309401,3224.5,3224.1,0.1695669]
[1736903770254,0.189,3224.6,3224.1,0.1695669]
[1736903770453,0.0309401,3224.5,3224.1,0.1695669]
[1736903770664,0.7835,3224.4,3224.1,0.1695669]
[1736903770957,0.0309401,3224.3,3224.1,0.1695669]
[1736903772348,0.189,3224.5,3224.1,0.1695669]
[1736903772548,0.0309401,3224.4,3224.1,0.1695669]
[1736903773790,0.189,3224.6,3224.2,3.88724]
[1736903773993,0.0309401,3224.9,3224.2,4.58521051]
[1736903774295,0.0309401,3224.9,3224.2,0.7857]
[1736903775490,0.7835,3225.7,3224.4,0.7857]
[1736903775730,0.7835,3225.7,3224.7,0.7857]
[1736903775864,0.189,3225.7,3225.1,0.7857]
[1736903776190,0.0309401,3225.8,3225.2,2.92289824]
[1736903776700,0.0309401,3225.8,3225.3,3.10046]
[1736903776909,0.189,3226.0,3225.4,0.7885]
[1736903777407,0.189,3226.0,3225.4,3.88888]
[1736903778005,0.2199401,3226.2,3225.4,3.88888]
[1736903778189,0.189,3226.2,3225.4,4.57005782]
[1736903778559,0.189,3226.2,3225.5,2.92289824]
[1736903779270,1.77157193,3226.4,3225.6,0.7885]
[1736903779513,0.0309401,3226.3,3225.8,6.02286824]
[1736903779689,0.0309401,3226.3,3225.9,0.68113682]
[1736903779890,0.0309401,3226.3,3225.8,2.92289824]
[1736903780701,1.77157193,3226.4,3225.8,6.02288824]
[1736903780903,0.0309401,3226.3,3225.8,6.02288824]
[1736903782110,1.77157193,3226.4,3225.8,6.02288824]
[1736903782307,1.77157193,3226.4,3226.2,0.7885]
[1736903790528,1.77157193,3226.4,3226.3,0.37113982]
[1736903790745,0.0309401,3227.0,3226.3,0.37113982]
[1736903791268,0.0309401,3227.0,3226.2,0.7885]
[1736903792545,0.2199401,3227.0,3226.2,0.7885]
[1736903793969,0.0309401,3227.0,3226.2,0.7885]
[1736903794147,0.2199401,3227.0,3226.2,0.7885]
[1736903794731,0.189,3227.0,3226.2,3.8881]
[1736903795032,0.189,3227.0,3226.3,0.68419919]
[1736903796203,0.189,3227.1,3226.3,0.68419919]
[1736903797443,0.826,3227.8,3226.7,2.92289824]
[1736903797599,0.826,3227.8,3227.0,3.71139824]
[1736903797801,3.0975,3228.5,3227.0,3.71139824]
[1736903797802,0.826,3228.2,3227.3,2.92289824]
[1736903798123,1.015,3228.2,3227.4,0.7885]
[1736903798336,3.92345,3228.5,3227.6,3.09826]
[1736903798536,0.189,3228.4,3227.6,6.02115824]
[1736903798913,3.826,3228.5,3227.7,0.7885]
[1736903799113,0.7232721,3228.4,3227.7,3.88667]
[1736903799313,0.189,3228.5,3227.7,3.88667]
[1736903799938,0.189,3228.5,3227.7,3.91764943]
[1736903800148,0.189,3228.5,3227.8,3.09805]
[1736903800356,0.189,3228.5,3227.9,3.09798]
[1736903800807,0.189,3228.5,3228.0,0.7885]
[1736903801506,3.28649,3228.5,3228.0,0.7885]
[1736903801709,0.3595891,3228.4,3228.0,0.7885]
[1736903801950,0.0309401,3228.4,3228.0,0.7885]
[1736903802461,0.189,3228.5,3228.0,0.7885]
[1736903803918,0.826,3229.1,3228.3,0.7885]
[1736903804231,0.189,3229.0,3228.3,0.7885]
[1736903804427,0.0309401,3228.9,3228.3,1.47251432]
[1736903804630,0.0309401,3228.9,3228.3,0.7885]
[1736903804960,0.826,3229.1,3228.3,0.7885]
[1736903805168,0.0309401,3229.0,3228.4,3.0975]
[1736903805319,3.87913892,3229.9,3227.6,3.09822]
[1736903805320,0.826,3229.7,3228.8,2.92289824]
[1736903805516,0.826,3229.7,3228.9,0.7885]
[1736903805517,1.015,3229.7,3228.9,0.7885]
[1736903805921,0.826,3229.7,3228.9,0.7885]
[1736903806460,3.0309401,3229.6,3228.9,0.7885]
[1736903806616,3.0,3229.6,3228.9,0.7885]
[1736903807465,0.189,3229.8,3228.9,0.7885]
[1736903807766,3.48611001,3230.1,3229.2,0.8102]
[1736903807931,3.0959,3230.1,3229.2,0.8102]
[1736903808470,3.09609,3229.9,3229.2,0.8102]
[1736903808620,0.0309401,3229.8,3229.2,0.8102]
[1736903810074,3.09609,3229.9,3229.2,0.8102]
[1736903810630,0.0309401,3229.8,3229.2,0.8102]
[1736903811052,3.09609,3229.9,3229.2,0.8102]
[1736903811370,0.0309401,3229.8,3229.2,0.8102]
[1736903811938,3.0964,3229.6,3229.2,0.8102]
[1736903812138,0.0309401,3229.5,3228.9,0.8102]
[1736903813182,0.7825,3229.7,3228.9,0.8102]
[1736903813407,3.87876,3229.7,3228.9,0.8102]
[1736903813542,3.09626,3229.7,3228.9,0.8102]
[1736903814069,3.4387369,3229.7,3228.9,0.8102]
[1736903814550,0.0309401,3229.6,3228.9,0.8102]
[1736903814860,0.7825,3229.5,3228.2,2.92289824]
[1736903815062,0.0309401,3229.4,3228.3,1.46855363]
[1736903815263,0.7825,3229.5,3228.3,1.90769882]
[1736903815623,3.87897,3229.5,3228.4,3.90763]
[1736903815829,3.87897,3229.5,3228.5,0.03097032]
[1736903817068,3.1275001,3229.4,3228.4,3.90763]
[1736903817265,0.0309401,3229.4,3228.4,3.90763]
[1736903817451,3.87899,3229.5,3228.4,4.70043271]
[1736903818164,3.87899,3229.5,3228.6,0.8102]
[1736903818928,3.09626,3229.7,3228.7,3.09721]
[1736903819128,0.0309401,3229.6,3228.8,0.8102]
[1736903819465,3.1273801,3229.6,3228.8,0.8102]
[1736903819693,0.31273801,3229.5,3228.8,0.8102]
[1736903819830,3.0,3229.7,3228.8,0.8102]
[1736903820229,3.0,3229.7,3229.0,0.8102]
[1736903820859,8.41601,3230.0,3229.0,0.8102]
[1736903821073,5.32,3230.0,3229.2,3.0967]
[1736903821394,3.09553,3230.5,3229.5,0.8102]
[1736903821591,3.09553,3230.5,3229.5,4.33128957]
[1736903821592,4.015333,3230.5,3229.5,4.33128957]
[1736903821799,4.015333,3230.5,3229.6,0.8102]
[1736903821948,3.1266101,3230.4,3229.6,0.8102]
[1736903823500,0.0309401,3230.4,3229.6,0.8102]
[1736903823648,5.32,3230.6,3229.7,3.70489824]
[1736903823855,5.32,3230.6,3229.9,0.782]
[1736903824775,0.0309401,3230.5,3229.9,0.782]
[1736903826584,5.32,3230.6,3229.9,0.782]
[1736903826762,5.32,3230.6,3230.0,0.03095711]
[1736903827088,3.09524,3230.8,3230.1,0.782]
[1736903827251,4.11157049,3230.8,3230.1,0.782]
[1736903827454,3.1262701,3230.7,3230.1,0.782]
[1736903828354,3.09533,3230.7,3230.1,0.782]
[1736903828958,1.01633049,3230.8,3230.1,0.782]
[1736903829487,0.0309401,3230.8,3230.1,0.782]
[1736903829661,3.09531,3230.7,3230.1,0.782]
[1736903829865,6.09514,3230.9,3230.1,0.782]
[1736903830278,3.0,3230.9,3230.1,0.782]
[1736903830595,0.0309401,3230.8,3230.1,0.782]
[1736903830804,0.30309401,3230.7,3230.1,0.782]
[1736903831096,3.09554,3230.5,3230.1,0.782]
[1736903831271,0.0309401,3230.4,3230.1,0.782]
[1736903832773,0.0309401,3230.5,3230.1,0.782]
[1736903833216,3.0954,3230.6,3230.1,0.782]
[1736903833970,0.30309401,3230.7,3230.1,0.782]
[1736903834171,3.39848401,3230.7,3230.1,0.782]
[1736903834367,3.09578,3230.2,3230.1,0.782]
[1736903834558,3.09578,3230.2,3229.8,0.03095855]
[1736903834559,3.09585,3230.2,3229.8,0.782]
[1736903834755,0.0309401,3230.1,3229.8,0.782]
[1736903834959,3.0959,3230.1,3229.8,0.782]
[1736903835161,0.0309401,3230.0,3229.8,0.782]
[1736903835456,3.09625,3229.8,3229.1,0.782]
[1736903835687,0.0309401,3229.7,3229.1,0.782]
[1736903836501,3.09625,3229.8,3229.1,0.782]
[1736903836802,3.1271901,3229.8,3229.1,0.782]
[1736903837002,3.09625,3229.8,3229.1,0.782]
[1736903837303,3.1271901,3229.8,3229.1,0.782]
[1736903839475,0.188,3229.9,3229.1,0.782]
[1736903840616,3.28409,3229.9,3229.1,0.782]
[1736903840793,3.28409,3229.9,3229.1,1.17299549]
[1736903841110,3.28409,3229.9,3229.2,0.8208]
[1736903841403,5.508,3230.4,3229.4,0.8208]
[1736903841610,5.508,3230.4,3229.3,2.95386313]
[1736903841611,5.508,3230.4,3229.7,0.8208]
[1736903841824,0.188,3230.4,3229.7,0.8208]
[1736903841999,0.188,3230.4,3229.7,1.21561083]
[1736903842314,0.188,3230.4,3229.7,0.8208]
[1736903842315,0.8616401,3230.3,3229.7,0.8208]
[1736903842463,0.8616401,3230.3,3229.0,0.8208]
[1736903842464,3.09618,3229.8,3229.0,0.8208]
[1736903842668,0.0309401,3229.7,3229.0,0.8208]
[1736903843107,3.09646,3229.5,3229.0,0.8208]
[1736903843310,3.1274901,3229.4,3229.0,0.8208]
[1736903843611,3.09667,3229.3,3229.0,0.8208]
[1736903843910,0.0309401,3229.4,3228.0,3.22251967]
[1736903843911,3.09707,3228.9,3228.6,0.8208]
[1736903844110,0.0309401,3228.8,3228.4,0.7789]
[1736903845111,3.09741,3228.5,3227.9,0.7789]
[1736903845327,0.0309401,3228.4,3227.9,0.7789]
[1736903846400,0.0309401,3228.5,3227.9,0.7789]
[1736903846720,0.188,3228.6,3227.9,0.7789]
[1736903846876,0.188,3228.6,3227.9,0.80987786]
[1736903847074,0.188,3228.6,3228.0,1.16969279]
[1736903847633,0.188,3228.6,3228.0,0.7789]
[1736903847924,0.2189401,3228.6,3228.0,0.7789]
[1736903848668,0.188,3228.6,3228.0,0.7789]
[1736903850408,0.188,3228.6,3228.0,0.80987583]
[1736903851130,0.188,3228.6,3228.0,0.7789]